[Event "Gibraltar Masters 18th"]
[Site "Caleta"]
[Date "2020.01.24"]
[Round "4"]
[White "Sunilduth Lyna, Narayanan"]
[Black "Kobo, Ori"]
[Result "1-0"]
[ECO "B07"]
[WhiteElo "2637"]
[BlackElo "2445"]
[Annotator "Sunilduth Lyna,Narayanan "]
[PlyCount "137"]
[EventDate "2020.01.21"]
[EventType "swiss"]
[EventRounds "10"]
[EventCountry "GGB"]
[SourceTitle "CBM 194 Extra"]
[Source "ChessBase"]
[SourceDate "2020.03.31"]
[SourceVersion "1"]
[SourceVersionDate "2020.03.31"]
[SourceQuality "1"]
[TimeControl "40/6000+30:20/3000+30:900+30"]

{[%evp 0,137,19,28,74,66,78,67,87,83,69,25,52,24,16,34,85,76,53,58,73,73,20,63,
36,50,66,23,56,81,89,89,33,19,11,18,18,26,24,34,29,34,29,17,53,74,83,53,65,65,
65,65,119,113,127,88,100,88,73,96,113,113,115,115,115,115,115,115,115,101,101,
101,113,105,94,76,98,84,86,93,94,72,94,92,92,34,73,61,64,66,66,66,88,64,64,64,
64,75,80,81,104,110,111,115,108,122,120,108,108,72,72,72,84,106,106,99,126,143,
188,161,188,144,144,149,286,210,444,304,300,354,505,475,505,507,962,992,992,
1002,1002,1002] This game was played in the 4th round of the Gibraltar Masters.
My opponent, though rated a mere 2445, is a grandmaster from Israel and had in
the previous round played a good game against my compatriot Karthikeyan Murali.
So I was a bit cautious not to underestimate him} 1. e4 {[%emt 0:00:00]} d6 {
[%emt 0:00:00]} 2. d4 {[%emt 0:00:00]} Nf6 {[%emt 0:00:00]} 3. Nc3 {[%emt 0:00:
15]} g6 {[%emt 0:00:49]} 4. Bf4 $5 {[%emt 0:00:10] An interesting setup which
is getting popular nowadays. The ideas are similar to that of 4.Be3.} Bg7 {
[%emt 0:02:23]} 5. Qd2 {[%emt 0:00:08]} c6 {[%emt 0:04:27]} 6. Bh6 {[%emt 0:00:
29]} Bxh6 {[%emt 0:00:25]} 7. Qxh6 {[%emt 0:00:08]} e5 {[%emt 0:00:22]} 8. Nf3
{[%emt 0:09:00]} Qe7 {[%emt 0:00:10]} 9. dxe5 $5 {[%emt 0:03:43] This positon
was somewhat fresh to me. There are many possible ways in which White could
continue, but to put a brake on my opponent's possible preparation I played
this move.} (9. Bc4 Nbd7 10. O-O b5 11. Bb3 exd4 12. Nxd4 Bb7) 9... dxe5 {
[%emt 0:00:10]} 10. Bc4 {[%emt 0:01:08]} b5 {[%emt 0:03:46]} 11. Bb3 {[%emt 0:
00:34]} Nbd7 {[%emt 0:00:27]} 12. a3 {[%emt 0:29:36]} (12. O-O Nc5 13. h3 a5
14. a3 Nh5 15. Ne2 f6 {Even though computers kind of slighty prefer White's
position I kind of seriously doubt it since Black is very solid.}) 12... Nc5 {
[%emt 0:18:44]} 13. Ba2 {[%emt 0:00:32]} Be6 $1 {[%emt 0:02:52] Of course
Black should exchange the dangerous white B pointing toward the weak f7 square}
14. Bxe6 {[%emt 0:10:21]} Nxe6 {[%emt 0:02:38]} 15. Nxe5 {[%emt 0:10:58]} Nd4 {
[%emt 0:02:43]} 16. O-O-O {[%emt 0:00:09]} (16. Nxc6 $5 {is an interesting
alternative undertaking some risks to exploit the bad position of Black's king
and the disconnected rooks, but objective Black is fine after a series of
accurate moves.} Nxc6 17. O-O-O Ne5 (17... Qe5 18. f4 Ng8 19. Qh4 Qc5 20. f5
Qe7 21. Qh3 $36 {[%csl Re8][%cal Gc3d5]}) 18. Rhe1 Nfg4 19. Qf4 O-O $1 {
The most logical move keeping the king in safety!} (19... Rc8 20. Rd5 $1 {
[%csl Re5,Rg4][%cal Gf2f3,Gh2h3]} Rxc3 (20... Rc5 21. f3 g5 22. Qf5 Nh6 23. Qh3
Rc6 24. Qh5 $16 {Black still has problems to solve}) 21. bxc3 Qxa3+ 22. Kd1 O-O
23. h3) 20. Nd5 Qh4 21. f3 (21. h3 Qxf2 22. hxg4 Qxf4+ 23. Nxf4 Nxg4) 21...
Qxh2 22. fxg4 Qxf4+ 23. Nxf4 Nxg4) 16... Qxe5 {[%emt 0:00:06]} 17. f4 {[%emt 0:
00:03]} Qc5 {[%emt 0:03:10]} 18. Qg5 {[%emt 0:01:57] Till here and some small
lines from here I calculated before playing Nxe5!?} Nxe4 $1 {[%emt 0:11:38]} (
18... Qxg5 19. fxg5 Nxc2 20. gxf6 Ne3 21. Rd6 Rc8 22. e5 Nc4 23. Rd4 O-O 24.
Re1 $14 Rfe8 (24... Rcd8 25. Rxd8 Rxd8 26. b3 Nxa3 27. e6 fxe6 28. Rxe6 Kf7 29.
Rxc6 Rd4 30. Ra6 b4 31. Rxa7+ Kxf6 32. Ra4 {[%csl Rb4][%cal Gc3a2]}) 25. e6 $1
Rxe6 26. Rxe6 fxe6 27. Rd7 Rf8 28. Ne4 {[%csl Gd7,Ge4,Gf6] and the white
pieces are better coordinated though it would be not clear if it will be
enough for a win. Still White will be pushing a bit!}) 19. Rhe1 {[%emt 0:02:06]
} (19. Rde1 {would have been more accurate in my opinion since it eliminates a
defence which was possible in the game continuation} O-O 20. Rxe4 Qxg5 21. fxg5
Rad8 22. Rhe1 $14 {with a risk free edge}) 19... Qxg5 {[%emt 0:05:30]} 20. fxg5
{[%emt 0:00:37]} Ne6 {[%emt 0:13:30]} 21. Nxe4 {[%emt 0:00:10] [#]} Ke7 $2 {
[%emt 0:00:16]} (21... Rd8 $1 {Exchanging one rook reduces White's pressure on
Black, which is very important since all White's possible ideas are connected
with keeping both the rooks.} 22. h4 Rxd1+ 23. Rxd1 h6 24. gxh6 Rxh6 25. Nd6+
Kf8 26. g3 a6 $11) (21... h6 $2 22. Nd6+ Ke7 23. Nxf7 Kxf7 24. Rd7+ Ke8 25. Rb7
$18) 22. Rd3 {[%emt 0:01:19]} Rad8 {[%emt 0:14:51]} 23. Rf3 $1 {[%emt 0:07:13]}
Rd5 {[%emt 0:05:34]} ({At least now Black should have tried to free the
position a bit rather than sitting and defending. That kind of strategy
basically backfires since White has too many ideas. But now the cost is that
of a pawn in order to free the position.} 23... h6 $1 24. h4 Rd5 25. Ref1 Rf5
$1 {Again the typical concept we saw including the exchange of one rook!} 26.
Rxf5 gxf5 27. Rxf5 hxg5 28. Nxg5 Nxg5 29. hxg5 Rh1+ 30. Kd2 Rh2 31. Rf2 Rh5 32.
Rf6 Rxg5 33. Rxc6 Rxg2+ 34. Kc3 f5 $11 {Clearly difficult to evaluate this
position for humans but still a better version than the game!}) 24. Ref1 {
[%emt 0:00:34]} Nd8 {[%emt 0:01:05]} 25. h4 {[%emt 0:02:12]} Rd4 {[%emt 0:08:
21]} ({Now} 25... h6 {is tactically possible too, but still leaves a lot of
positional weaknesses in Black's position.} 26. gxh6 f5 $1 (26... Rxh6 27. Nf6
{[%csl Rd5,Rh6][%cal Gf6g8]}) 27. Ng5 Rxh6 28. Re3+ Kd7 29. Nf3 $14) 26. Re3 {
[%emt 0:00:21]} Kf8 {[%emt 0:03:31]} 27. c3 {[%emt 0:05:52]} Rd7 {[%emt 0:00:
03]} 28. Nf6 {[%emt 0:01:34]} Re7 {[%emt 0:01:10]} 29. Rd3 {[%emt 0:01:44]} Kg7
{[%emt 0:01:16]} 30. h5 {[%emt 0:01:30]} gxh5 {[%emt 0:00:12]} 31. Nxh5+ {
[%emt 0:00:44]} Kg6 {[%emt 0:00:03]} 32. Nf4+ {[%emt 0:03:49]} Kg7 {[%emt 0:00:
01]} 33. Rd6 $1 {[%emt 0:00:02] This move I saw when I played 27.c3} Ne6 {
[%emt 0:01:29]} 34. Rxc6 {[%emt 0:03:46]} Nxf4 {[%emt 0:00:09]} 35. Rxf4 {
[%emt 0:00:05]} Rb8 {[%emt 0:03:27]} 36. Rd6 {[%emt 0:02:10]} Rbb7 {[%emt 0:01:
14]} 37. Rf5 {[%emt 0:02:05]} Re1+ {[%emt 0:01:09]} 38. Rd1 {[%emt 0:01:34]}
Re4 {[%emt 0:00:30]} 39. Rd4 {[%emt 0:00:13]} Re2 {[%emt 0:00:10]} 40. Rd2 {
[%emt 0:04:48] Just to make it to the 40th move in order to convert the
advantage in the most effective manner.} Re3 {[%emt 0:00:45]} 41. Rdd5 {
[%emt 0:06:23]} a6 {[%emt 0:05:20]} 42. Kc2 {[%emt 0:20:59]} Rg3 {[%emt 0:03:
22]} 43. Rf2 $16 {[%emt 0:01:33] Already Black's position was difficult to
defend but he should have restrained from playing his next move since it
breaks his structure completely} a5 $6 {[%emt 0:09:54]} 44. a4 {[%emt 0:01:58]}
bxa4 {[%emt 0:06:10]} 45. Rxa5 {[%emt 0:00:16]} Rg4 {[%emt 0:01:26]} 46. Ra6 {
[%emt 0:02:31]} Re7 {[%emt 0:08:06]} 47. Kb1 {[%emt 0:01:34][%cal Gb1a2,Ga2a3]}
Rd7 {[%emt 0:05:08]} 48. Ka2 {[%emt 0:00:23]} Re7 {[%emt 0:00:20]} 49. Rb6 {
[%emt 0:06:34]} (49. Ka3 Re1) 49... Rxg5 {[%emt 0:01:56]} 50. Ka3 {[%emt 0:01:
02]} Ra7 {[%emt 0:04:34]} 51. Rb4 {[%emt 0:00:16]} Rga5 {[%emt 0:01:38]} 52.
Rff4 {[%emt 0:02:42]} Rg5 {[%emt 0:00:06]} 53. Rxa4 {[%emt 0:03:09]} Rxa4+ {
[%emt 0:00:27]} 54. Rxa4 {[%emt 0:00:19]} Rxg2 {[%emt 0:00:11] Here I was
pretty much sure the endgame was winning for me} 55. b4 {[%emt 0:00:17]} Kf6 {
[%emt 0:07:26]} 56. b5 {[%emt 0:00:07]} Ke5 {[%emt 0:01:14]} 57. b6 {[%emt 0:
06:09]} Rg8 {[%emt 0:01:31]} 58. Kb4 {[%emt 0:00:31]} f5 {[%emt 0:00:20]} 59.
Kb5 {[%emt 0:00:51]} f4 {[%emt 0:00:31]} 60. b7 {[%emt 0:05:36]} f3 {[%emt 0:
00:24]} 61. Ra2 {[%emt 0:08:43]} Ke4 {[%emt 0:13:38]} 62. c4 {[%emt 0:00:34]}
Rg2 {[%emt 0:01:36]} 63. Ra1 $1 {[%emt 0:01:11] Good technique and much more
practical than trying to assess whether} (63. b8=Q Rxa2 {is also winning.})
63... Rb2+ {[%emt 0:00:57]} 64. Kc6 {[%emt 0:00:13]} f2 {[%emt 0:01:02]} 65.
Kc7 {[%emt 0:00:47]} h5 {[%emt 0:00:35]} 66. c5 {[%emt 0:01:03]} Kf3 {[%emt 0:
00:23]} 67. b8=Q {[%emt 0:00:53]} Rxb8 {[%emt 0:00:04]} 68. Kxb8 {[%emt 0:00:
04]} Kg2 {[%emt 0:00:15]} 69. c6 {[%emt 0:00:17]} 1-0